fUSD/lending_fUSD_20240530
["ID","MTS","AMOUNT","RATE_DAILY","PERIOD"]
[328251168,1717110641837,-150.0,0.00014189,2]
[328251169,1717110641846,-29999.99,0.00014504,2]
[328251170,1717110641855,-250.0,0.00014756,2]
[328251171,1717110641866,-211.06,0.00014856,2]
[328251172,1717110641876,-8095.78278903,0.00015,2]
[328251173,1717110641885,-250.0,0.00015098,2]
[328251174,1717110641895,-410.09,0.00015268,2]
[328251175,1717110641904,-647.0,0.000153,2]
[328251176,1717110641914,-3689.0,0.000153,2]
[328251177,1717110641923,-2097.38,0.00015345,2]
[328251178,1717110641932,-800.0,0.0001535,2]
[328251179,1717110641941,-808.34997483,0.00015655,2]
[328251180,1717110641955,-625.77,0.00016108,2]
[328251181,1717110641964,-421.22615,0.0001636,2]
[328251182,1717110641973,-211.06,0.0001712,2]
[328251183,1717110641983,-800.0,0.00017269,2]
[328251184,1717110641993,-808.34997483,0.00017409,2]
[328251185,1717110642002,-410.09,0.00018007,2]
[328251186,1717110642012,-625.77,0.00018122,2]
[328251187,1717110642021,-196.58513748,0.0001846,2]
[328251188,1717110642031,-421.22615,0.0001886,2]
[328251189,1717110642041,-808.34997483,0.00019164,2]
[328251190,1717110642050,-477.88270442,0.00019178,2]
[328251191,1717110642060,-369.28798446,0.00019178,2]
[328251192,1717110642070,-800.0,0.00019188,2]
[328251193,1717110642079,-211.06,0.00019383,2]
[328251194,1717110642088,-3886.30484841,0.00019451,2]
[328251195,1717110642097,-6248.82552361,0.0002,2]
[328251196,1717110642106,-634.50759008,0.0002,2]
[328251197,1717110642116,-863.06900647,0.0002,2]
[328251198,1717110642126,-1560.33087535,0.0002,2]
[328251199,1717110642135,-193.0,0.0002,2]
[328251200,1717110642144,-150.0,0.0002,2]
[328251201,1717110642153,-625.77,0.00020135,2]
[328251202,1717110642162,-150.0,0.000205,2]
[328251203,1717110642172,-410.09,0.00020747,2]
[328251204,1717110642182,-808.34997483,0.00020918,2]
[328251205,1717110642191,-150.0,0.00021,2]
[328251206,1717110642201,-800.0,0.00021106,2]
[328251207,1717110642212,-421.22615,0.0002136,2]
[328251208,1717110642221,-150.0,0.000215,3]
[328251209,1717110642231,-211.06,0.00021647,2]
[328251210,1717110642242,-174.89,0.00021918,2]
[328251211,1717110642251,-788.85640222,0.00022,2]
[328251212,1717110642262,-150.0,0.00022,3]
[328251214,1717110642271,-625.77,0.00022149,2]
[328251215,1717110642281,-150.0,0.000225,3]
[328251216,1717110642291,-808.34997483,0.00022673,2]
[328251217,1717110642300,-155.0,0.00023,2]
[328251218,1717110642311,-150.0,0.00023,3]
[328251219,1717110642323,-196.58513748,0.0002302,2]
[328251220,1717110642333,-800.0,0.00023025,2]
[328251221,1717110642344,-150.0,0.000235,3]
[328251222,1717110642355,-421.22615,0.0002386,2]
[328251223,1717110642364,-211.06,0.00023911,2]
[328251224,1717110642373,-150.0,0.00024,4]
[328251225,1717110642382,-625.77,0.00024162,2]
[328251226,1717110642391,-154.03,0.00024384,2]
[328251227,1717110642401,-156.75,0.00024384,2]
[328251228,1717110642410,-158.13,0.00024384,2]
[328251229,1717110642420,-250.29,0.00024384,2]
[328251230,1717110642429,-163.97,0.00024384,2]
[328251231,1717110642438,-808.34997483,0.00024427,2]
[328251232,1717110642447,-150.0,0.000245,4]
[328251233,1717110642456,-300.0,0.000247,2]
[328251234,1717110642465,-1623.89261187,0.00024798,2]
[328251235,1717110642474,-1623.89261187,0.00024798,2]
[328251236,1717110642483,-1623.89261187,0.00024798,2]
[328251237,1717110642493,-1623.89261187,0.00024798,2]
[328251238,1717110642503,-1623.89261187,0.00024798,2]
[328251239,1717110642512,-164.19286499,0.00024799,2]
[328251240,1717110642521,-614.0,0.00024813,2]
[328251241,1717110642530,-216.0,0.00024813,2]
[328251242,1717110642547,-432.41,0.00024813,2]
[328251243,1717110642559,-700.0,0.000249,9]
[328251244,1717110642569,-547.0,0.00024986,2]
[328251245,1717110642579,-152.89,0.0002499,2]
[328251246,1717110642589,-152.89,0.0002499,2]
[328251247,1717110642599,-85739.44706149,0.00025,9]
[328251248,1717110642609,-703373.19840113,0.00025,2]
[328251249,1717110642619,-5000.0,0.00025,7]
[328251250,1717110642640,-1201.28646968,0.00025,2]
[328251251,1717110642659,-185.898797,0.00025,7]
[328251252,1717110642678,-151.0,0.00025,7]
[328251253,1717110642693,-151.0,0.00025,7]
[328251254,1717110642710,-151.0,0.00025,7]
[328251255,1717110642726,-151.0,0.00025,7]
[328251256,1717110642742,-151.0,0.00025,7]
[328251257,1717110642761,-152.820677,0.00025,7]
[328251258,1717110642775,-151.0,0.00025,7]
[328251259,1717110642789,-151.0,0.00025,7]
[328251260,1717110642806,-151.0,0.00025,7]
[328251261,1717110642823,-151.0,0.00025,7]
[328251262,1717110642838,-153.037748,0.00025,7]
[328251263,1717110642851,-152.57399,0.00025,7]
[328251264,1717110642864,-172.384447,0.00025,7]
[328251265,1717110642881,-151.0,0.00025,7]
[328251266,1717110642896,-151.0,0.00025,7]
[328251267,1717110642913,-151.0,0.00025,7]
[328251268,1717110642931,-151.0,0.00025,7]
[328251269,1717110642942,-151.0,0.00025,7]
[328251270,1717110642956,-151.0,0.00025,7]
[328251271,1717110642970,-151.0,0.00025,7]
[328251272,1717110642987,-151.0,0.00025,7]
[328251273,1717110643000,-151.0,0.00025,7]
[328251274,1717110643013,-151.0,0.00025,7]
[328251275,1717110643031,-151.0,0.00025,7]
[328251276,1717110643043,-151.0,0.00025,7]
[328251277,1717110643055,-151.0,0.00025,7]
[328251278,1717110643069,-151.0,0.00025,7]
[328251279,1717110643087,-151.0,0.00025,7]
[328251280,1717110643101,-156.863865,0.00025,7]
[328251281,1717110643121,-151.0,0.00025,7]
[328251282,1717110643137,-151.0,0.00025,7]
[328251283,1717110643156,-151.536501,0.00025,7]
[328251284,1717110643172,-151.0,0.00025,7]
[328251286,1717110643189,-151.0,0.00025,7]
[328251289,1717110643205,-151.0,0.00025,7]
[328251291,1717110643220,-151.0,0.00025,7]
[328251294,1717110643234,-225.501072,0.00025,7]
[328251296,1717110643249,-225.501072,0.00025,7]
[328251299,1717110643263,-225.501072,0.00025,7]
[328251301,1717110643277,-225.501072,0.00025,7]
[328251302,1717110643290,-151.0,0.00025,7]
[328251303,1717110643303,-151.0,0.00025,7]
[328251304,1717110643317,-151.0,0.00025,7]
[328251305,1717110643331,-151.0,0.00025,7]
[328251306,1717110643344,-151.0,0.00025,7]
[328251307,1717110643357,-151.0,0.00025,7]
[328251308,1717110643371,-152.563279,0.00025,7]
[328251309,1717110643384,-1050.0,0.00025,2]
[328251310,1717110643398,-154.903516,0.00025,7]
[328251311,1717110643410,-151.0,0.00025,7]
[328251312,1717110643423,-151.0,0.00025,7]
[328251313,1717110643436,-152.712151,0.00025,7]
[328251314,1717110643448,-151.0,0.00025,7]
[328251315,1717110643461,-154.902307,0.00025,7]
[328251316,1717110643474,-154.902307,0.00025,7]
[328251317,1717110643486,-151.0,0.00025,7]
[328251318,1717110643499,-151.0,0.00025,7]
[328251319,1717110643511,-151.0,0.00025,7]
[328251320,1717110643524,-151.0,0.00025,7]
[328251321,1717110643538,-151.0,0.00025,7]
[328251322,1717110643550,-266.169416,0.00025,7]
[328251323,1717110643563,-266.169416,0.00025,7]
[328251324,1717110643574,-151.0,0.00025,7]
[328251325,1717110643587,-151.0,0.00025,7]
[328251326,1717110643600,-151.0,0.00025,7]
[328251327,1717110643612,-151.0,0.00025,7]
[328251328,1717110643624,-151.0,0.00025,7]
[328251329,1717110643636,-151.0,0.00025,7]
[328251330,1717110643650,-151.0,0.00025,7]
[328251331,1717110643663,-151.0,0.00025,7]
[328251332,1717110643675,-151.0,0.00025,7]
[328251333,1717110643687,-151.0,0.00025,7]
[328251334,1717110643700,-234.639951,0.00025,7]
[328251335,1717110643712,-151.0,0.00025,7]
[328251336,1717110643725,-151.0,0.00025,7]
[328251337,1717110643736,-151.0,0.00025,7]
[328251338,1717110643749,-151.0,0.00025,7]
[328251339,1717110643761,-152.076194,0.00025,7]
[328251340,1717110643773,-255.291817,0.00025,7]
[328251341,1717110643786,-151.0,0.00025,7]
[328251342,1717110643798,-255.291817,0.00025,7]
[328251343,1717110643811,-153.834915,0.00025,7]
[328251344,1717110643824,-151.0,0.00025,7]
[328251345,1717110643837,-151.0,0.00025,7]
[328251346,1717110643850,-151.0,0.00025,7]
[328251347,1717110643862,-151.0,0.00025,7]
[328251348,1717110643874,-152.170032,0.00025,7]
[328251349,1717110643886,-151.0,0.00025,7]
[328251350,1717110643899,-300.0,0.00025,7]
[328251351,1717110643912,-151.0,0.00025,7]
[328251352,1717110643924,-151.0,0.00025,7]
[328251353,1717110643936,-151.0,0.00025,7]
[328251354,1717110643950,-238.698843,0.00025,7]
[328251355,1717110643965,-151.0,0.00025,7]
[328251356,1717110643978,-151.0,0.00025,7]
[328251357,1717110643997,-151.0,0.00025,7]
[328251358,1717110644010,-151.0,0.00025,7]
[328251359,1717110644020,-152.619764,0.00025,7]
[328251360,1717110644032,-531.36058,0.00025,7]
[328251361,1717110644042,-531.36058,0.00025,7]
[328251362,1717110644052,-151.0,0.00025,7]
[328251363,1717110644062,-151.0,0.00025,7]
[328251364,1717110644071,-531.36058,0.00025,7]
[328251365,1717110644080,-531.36058,0.00025,7]
[328251366,1717110644390,-211.06,0.00026175,2]
[328251367,1717110644428,-808.34997483,0.00026182,2]
[328251368,1717110644439,-421.22615,0.0002636,2]
[328251369,1717110644449,-1623.89261187,0.00026763,2]
[328251370,1717110644459,-155.0,0.00027,4]
[328251371,1717110644469,-1100.0,0.00027,2]
[328251372,1717110644478,-150.0,0.00027,2]
[328251373,1717110644488,-151.0,0.00027397,7]
[328251374,1717110644497,-151.0,0.00027397,7]
[328251375,1717110644507,-1507.51,0.00027397,10]
[328251376,1717110644516,-196.58513748,0.00027579,2]
[328251377,1717110644526,-808.34997483,0.00027936,2]
[328251378,1717110644535,-483.48518496,0.00028,7]
[328251379,1717110644545,-156.0,0.0002831,15]
[328251380,1717110644555,-225.19,0.00028321,2]
[328251381,1717110644564,-211.06,0.00028439,2]
[328251382,1717110644574,-1000.0,0.000289,10]
[328251383,1717110644583,-1623.89261187,0.00028909,2]
[328251384,1717110644593,-150.0,0.0002899,2]
[328251385,1717110644602,-2051.96615826,0.00029,2]
[328251386,1717110644611,-1150.0,0.00029,2]
[328251387,1717110644621,-267165.24399676,0.0002913,10]
[328251388,1717110644630,-151.0,0.0002913,7]
[328251389,1717110644640,-151.0,0.0002913,7]
[328251390,1717110644656,-151.0,0.0002913,7]
[328251391,1717110644666,-151.0,0.0002913,7]
[328251392,1717110644676,-151.0,0.0002913,7]
[328251393,1717110644685,-151.0,0.0002913,7]
[328251394,1717110644695,-151.0,0.0002913,7]
[328251395,1717110644704,-151.0,0.0002913,7]
[328251396,1717110644714,-225.501072,0.0002913,7]
[328251397,1717110644723,-225.501072,0.0002913,7]
[328251398,1717110644732,-151.0,0.0002913,7]
[328251399,1717110644742,-151.0,0.0002913,7]
[328251400,1717110644751,-151.0,0.0002913,7]
[328251401,1717110644760,-151.0,0.0002913,7]
[328251402,1717110644769,-273.214532,0.0002913,7]
[328251403,1717110644779,-192.53797,0.0002913,7]
[328251404,1717110644788,-151.0,0.0002913,7]
[328251405,1717110644797,-154.902307,0.0002913,7]
[328251406,1717110644807,-154.902307,0.0002913,7]
[328251407,1717110644816,-151.0,0.0002913,7]
[328251408,1717110644826,-151.0,0.0002913,7]
[328251409,1717110644835,-151.0,0.0002913,7]
[328251410,1717110644845,-151.0,0.0002913,7]
[328251411,1717110644854,-151.0,0.0002913,7]
[328251412,1717110644864,-266.169416,0.0002913,7]
[328251413,1717110644874,-266.169416,0.0002913,7]
[328251414,1717110644884,-151.0,0.0002913,7]
[328251415,1717110644894,-151.0,0.0002913,7]
[328251416,1717110644907,-158.243465,0.0002913,7]
[328251417,1717110644917,-151.0,0.0002913,7]
[328251418,1717110644926,-151.0,0.0002913,7]
[328251419,1717110644935,-151.0,0.0002913,7]
[328251420,1717110644945,-151.0,0.0002913,7]
[328251421,1717110644957,-151.0,0.0002913,7]
[328251422,1717110644966,-170.47323,0.0002913,7]
[328251423,1717110644976,-151.0,0.0002913,7]
[328251424,1717110644986,-255.291817,0.0002913,7]
[328251425,1717110644995,-157.497477,0.0002913,7]
[328251426,1717110645004,-255.291817,0.0002913,7]
[328251427,1717110645014,-151.0,0.0002913,7]
[328251428,1717110645023,-151.0,0.0002913,7]
[328251429,1717110645034,-151.0,0.0002913,7]
[328251430,1717110645045,-151.0,0.0002913,7]
[328251431,1717110645055,-151.0,0.0002913,7]
[328251432,1717110645067,-151.0,0.0002913,7]
[328251433,1717110645076,-151.0,0.0002913,7]
[328251434,1717110645085,-151.0,0.0002913,7]
[328251435,1717110645095,-151.0,0.0002913,7]
[328251436,1717110645104,-151.0,0.0002913,7]
[328251437,1717110645113,-151.0,0.0002913,7]
[328251438,1717110645123,-151.0,0.0002913,7]
[328251439,1717110645134,-158.026372,0.0002913,7]
[328251440,1717110645143,-531.36058,0.0002913,7]
[328251441,1717110645155,-531.36058,0.0002913,7]
[328251442,1717110645164,-533.268508,0.00029198,2]
[328251443,1717110645173,-226.23265054,0.000295,3]
[328251444,1717110645182,-533.268508,0.00029563,2]
[328251445,1717110645192,-151.0,0.0002958,2]
[328251446,1717110645201,-808.34997483,0.00029691,2]
[328251447,1717110645211,-170.83860834,0.000299,2]
[328251448,1717110645220,-375.62984602,0.000299,2]
[328251449,1717110645229,-442.59647651,0.00029907,2]
[328251450,1717110645238,-533.268508,0.00029928,2]
[328251451,1717110645247,-442.59647651,0.00029966,2]
[328251452,1717110645256,-166.66666665,0.00029968,2]
[328251453,1717110645266,-17042.20741955,0.0003,5]
[328251454,1717110645275,-1000.0,0.0003,4]
[328251455,1717110645284,-155.0,0.0003,2]
[328251456,1717110645294,-15869.08967081,0.0003,6]
[328251457,1717110645303,-200.0,0.0003,2]
[328251458,1717110645312,-200.0,0.0003,2]
[328251459,1717110645322,-200.0,0.0003,2]
[328251460,1717110645332,-12376.38244207,0.0003,2]
[328251461,1717110645341,-3131.67,0.0003,2]
[328251462,1717110645351,-684.8921,0.0003,4]
[328251463,1717110645360,-23844.69262994,0.0003,4]
[328251464,1717110645370,-2345.12481961,0.0003,4]
[328251465,1717110645379,-19417.56126702,0.0003,4]
[328251466,1717110645389,-151.0,0.0003,7]
[328251467,1717110645401,-189.6673363,0.0003,7]
[328251468,1717110645414,-223.45232,0.0003,7]
[328251469,1717110645424,-151.0,0.0003,7]
[328251470,1717110645433,-151.0,0.0003,7]
[328251471,1717110645443,-151.0,0.0003,7]
[328251472,1717110645453,-151.0,0.0003,7]
[328251473,1717110645463,-151.0,0.0003,7]
[328251474,1717110645473,-225.501072,0.0003,7]
[328251475,1717110645483,-225.501072,0.0003,7]
[328251476,1717110645494,-151.0,0.0003,7]
[328251477,1717110645503,-218.869411,0.0003,7]
[328251478,1717110645513,-151.0,0.0003,7]
[328251479,1717110645523,-266.398731,0.0003,7]
[328251480,1717110645534,-154.902307,0.0003,7]
[328251481,1717110645545,-154.902307,0.0003,7]
[328251482,1717110645555,-151.0,0.0003,7]
[328251483,1717110645565,-151.0,0.0003,7]
[328251484,1717110645576,-266.169416,0.0003,7]
[328251485,1717110645586,-266.169416,0.0003,7]
[328251486,1717110645596,-151.0,0.0003,7]
[328251487,1717110645606,-151.0,0.0003,7]
[328251488,1717110645616,-151.0,0.0003,7]
[328251489,1717110645626,-151.0,0.0003,7]
[328251490,1717110645636,-151.0,0.0003,7]
[328251491,1717110645648,-151.0,0.0003,7]
[328251492,1717110645658,-255.291817,0.0003,7]
[328251493,1717110645668,-255.291817,0.0003,7]
[328251494,1717110645677,-151.0,0.0003,7]
[328251495,1717110645687,-151.0,0.0003,7]
[328251496,1717110645697,-196.862253,0.0003,7]
[328251497,1717110645707,-187.993012,0.0003,7]
[328251498,1717110645716,-151.0,0.0003,7]
[328251499,1717110645726,-151.0,0.0003,7]
[328251500,1717110645736,-151.0,0.0003,7]
[328251501,1717110645746,-151.0,0.0003,7]
[328251502,1717110645756,-151.0,0.0003,7]
[328251503,1717110645765,-151.0,0.0003,7]
[328251504,1717110645775,-218.285716,0.0003,7]
[328251505,1717110645785,-531.36058,0.0003,7]
[328251506,1717110645795,-442.59647651,0.00030108,7]
[328251507,1717110645804,-154.59322517,0.00030124,7]
[328251508,1717110645814,-153.977743,0.00030137,7]
[328251509,1717110645823,-165.24587979,0.00030159,7]
[328251510,1717110645834,-155.13934015,0.00030188,7]
[328251511,1717110645843,-207.04280489,0.00030255,7]
[328251512,1717110645853,-533.268508,0.00030293,2]
[328251513,1717110645864,-359.65168204,0.00030306,7]
[328251514,1717110645873,-250.29,0.0003031,2]
[328251515,1717110645884,-163.97,0.0003031,2]
[328251516,1717110645894,-442.59647651,0.00030348,7]
[328251517,1717110645906,-180.08964431,0.00030385,7]
[328251518,1717110645916,-155.13934015,0.00030428,7]
[328251519,1717110645926,-165.24587979,0.0003044,7]
[328251520,1717110645936,-151.97604569,0.00030471,7]
[328251521,1717110645945,-180.08964431,0.00030506,7]
[328251522,1717110645959,-180.08964431,0.00030625,7]
[328251523,1717110645969,-155.03733759,0.00030636,7]
[328251524,1717110645979,-533.268508,0.00030658,2]
[328251525,1717110645988,-211.06,0.00030703,2]
[328251526,1717110645999,-166.66666666,0.00030831,7]
[328251527,1717110646008,-150.0,0.00030866,2]
[328251528,1717110646018,-22978.04182867,0.00030887,2]
[328251529,1717110646027,-151.0,0.00030895,7]
[328251530,1717110646040,-151.0,0.00030895,7]
[328251531,1717110646050,-266.169416,0.00030895,7]
[328251532,1717110646059,-266.169416,0.00030895,7]
[328251533,1717110646068,-151.0,0.00030895,7]
[328251534,1717110646079,-151.0,0.00030895,7]
[328251535,1717110646088,-151.0,0.00030895,7]
[328251536,1717110646098,-3131.67,0.000309,2]
[328251537,1717110646107,-180.08964431,0.00030925,7]
[328251538,1717110646116,-167.19067972,0.00030992,7]
[328251539,1717110646126,-1623.89261187,0.00031054,10]
[328251540,1717110646135,-180.08964431,0.00031073,7]
[328251541,1717110646148,-442.59647651,0.00031133,7]
[328251542,1717110646157,-265.41628419,0.000312,2]
[328251543,1717110646166,-3450.45,0.000312,2]
[328251544,1717110646175,-180.08964431,0.00031331,7]
[328251545,1717110646185,-359.65168204,0.0003136,7]
[328251546,1717110646194,-151.97604569,0.00031421,7]
[328251547,1717110646204,-808.34997483,0.00031445,3]
[328251548,1717110646213,-150.0,0.00031549,2]
[328251549,1717110646223,-375.62984601,0.0003155,2]
[328251550,1717110646233,-442.59647651,0.00031582,7]
[328251551,1717110646242,-300.0,0.00031625,2]
[328251552,1717110646251,-151.0,0.00031625,7]
[328251553,1717110646261,-151.0,0.00031625,7]
[328251554,1717110646270,-255.291817,0.00031625,7]
[328251555,1717110646280,-255.291817,0.00031625,7]
[328251556,1717110646289,-151.0,0.00031625,7]
[328251557,1717110646299,-151.0,0.00031625,7]
[328251558,1717110646309,-151.0,0.00031625,7]
[328251559,1717110646319,-206.676123,0.00031625,7]
[328251560,1717110646329,-151.0,0.00031625,7]
[328251561,1717110646338,-174.072604,0.00031625,7]
[328251562,1717110646348,-151.0,0.00031625,7]
[328251563,1717110646358,-151.0,0.00031625,7]
[328251564,1717110646367,-151.0,0.00031633,7]
[328251565,1717110646377,-2011.65314412,0.00031633,2]
[328251566,1717110646386,-794.83939598,0.00031633,4]
[328251567,1717110646398,-161.32366635,0.00031637,7]
[328251568,1717110646407,-150.0,0.00031663,2]
[328251569,1717110646417,-157.94374797,0.00031689,7]
[328251570,1717110646428,-207.04280489,0.00031719,7]
[328251571,1717110646438,-300.0,0.00031728,2]
[328251572,1717110646448,-157.94374797,0.00031759,7]
[328251573,1717110646457,-3131.67,0.000318,2]
[328251574,1717110646466,-151.0,0.000318,7]
[328251575,1717110646476,-500.0,0.000318,2]
[328251576,1717110646486,-500.0,0.000318,2]
[328251577,1717110646495,-500.0,0.000318,2]
[328251578,1717110646506,-153.97017159,0.00031834,7]
[328251579,1717110646515,-165.24587979,0.00031872,7]
[328251580,1717110646524,-150.0,0.00031903,2]
[328251581,1717110646534,-153.97017159,0.00031913,7]
[328251582,1717110646543,-203.42427864,0.00031985,7]
[328251583,1717110646554,-157.78766666,0.00032,4]
[328251584,1717110646564,-3450.45,0.00032,2]
[328251585,1717110646575,-333.85119275,0.00032,4]
[328251586,1717110646585,-995.36,0.00032,2]
[328251587,1717110646595,-300.98,0.00032,2]
[328251588,1717110646604,-531.36058,0.00032,7]
[328251589,1717110646614,-10000.0,0.00032039,2]
[328251590,1717110646624,-151.0,0.00032039,7]
[328251591,1717110646634,-151.0,0.00032039,7]
[328251592,1717110646643,-151.0,0.00032039,7]
[328251593,1717110646654,-151.0,0.00032039,7]
[328251594,1717110646664,-225.501072,0.00032039,7]
[328251595,1717110646674,-225.501072,0.00032039,7]
[328251596,1717110646683,-151.0,0.00032039,7]
[328251597,1717110646693,-151.0,0.00032039,7]
[328251598,1717110646703,-154.902307,0.00032039,7]
[328251599,1717110646713,-154.902307,0.00032039,7]
[328251600,1717110646724,-200.0,0.00032138,2]
[328251601,1717110646734,-500.0,0.00032139,2]
[328251602,1717110646743,-200.0,0.00032139,2]
[328251603,1717110646753,-300.0,0.00032139,2]
[328251604,1717110646763,-196.58513748,0.00032139,2]
[328251605,1717110646772,-150.0,0.00032239,2]
[328251606,1717110646782,-150.0,0.00032255,2]
[328251607,1717110646792,-359.65168204,0.0003227,7]
[328251608,1717110646802,-157.67621734,0.000323,7]
[328251609,1717110646811,-1300.0,0.000323,11]
[328251610,1717110646822,-150.0,0.00032301,2]
[328251611,1717110646831,-153.82452483,0.00032343,7]
[328251612,1717110646841,-300.0,0.00032352,2]
[328251613,1717110646851,-200.0,0.000324,11]
[328251614,1717110646862,-157.053107,0.00032418,46]
[328251615,1717110646872,-150.0,0.00032422,2]
[328251617,1717110646882,-157.053107,0.00032448,44]
[328251619,1717110646891,-442.59647651,0.00032469,7]
[328251621,1717110646903,-157.053107,0.00032478,48]
[328251623,1717110646912,-200.0,0.000325,11]
[328251625,1717110646921,-155.03733759,0.00032504,7]
[328251626,1717110646931,-150.0,0.00032531,2]
[328251627,1717110646941,-150.0,0.00032555,2]
[328251628,1717110646951,-300.0,0.00032584,2]
[328251630,1717110646965,-155.03733759,0.00032585,7]
[328251632,1717110646975,-200.0,0.000326,11]
[328251633,1717110646984,-150.0,0.000326,2]
[328251634,1717110646994,-442.59647651,0.0003264,7]
[328251635,1717110647004,-150.0,0.00032657,2]
[328251636,1717110647014,-150.0,0.00032688,2]
[328251637,1717110647023,-3131.67,0.000327,2]
[328251638,1717110647035,-200.0,0.000327,11]
[328251639,1717110647044,-500.0,0.00032718,2]
[328251640,1717110647053,-442.59647651,0.00032722,7]
[328251641,1717110647063,-150.0,0.00032723,2]
[328251642,1717110647073,-150.0,0.00032763,2]
[328251643,1717110647082,-415.089,0.00032779,7]
[328251644,1717110647092,-439.48769249,0.00032782,2]
[328251645,1717110647101,-359.65168204,0.00032784,7]
[328251646,1717110647111,-150.0,0.00032786,2]
[328251647,1717110647120,-889.75796101,0.00032798,5]
[328251648,1717110647130,-889.75796092,0.00032798,5]
[328251649,1717110647139,-889.75796092,0.00032798,5]
[328251650,1717110647149,-889.75796092,0.00032798,5]
[328251651,1717110647159,-889.75796092,0.00032798,5]
[328251652,1717110647169,-889.75796092,0.00032798,5]
[328251653,1717110647179,-889.75796092,0.00032798,5]
[328251654,1717110647188,-889.75796092,0.00032798,5]
[328251655,1717110647198,-889.75796092,0.00032798,5]
[328251656,1717110647207,-889.75796092,0.00032798,5]
[328251657,1717110647216,-889.75796092,0.00032798,5]
[328251658,1717110647226,-889.75796092,0.00032798,5]
[328251659,1717110647236,-889.75796092,0.00032798,5]
[328251660,1717110647245,-889.75796092,0.00032798,5]
[328251661,1717110647254,-3450.45,0.000328,2]
[328251662,1717110647263,-800.0,0.000328,11]
[328251663,1717110647273,-150.0,0.00032808,2]
[328251664,1717110647283,-150.0,0.00032831,2]
[328251665,1717110647292,-150.0,0.00032839,2]
[328251666,1717110647302,-150.0,0.00032839,2]
[328251667,1717110647312,-150.0,0.00032857,2]
[328251668,1717110647323,-151.0,0.00032867,2]
[328251669,1717110647333,-250.49088,0.00032867,2]
[328251670,1717110647343,-708.52513892,0.00032876,5]
[328251671,1717110647352,-646.72983444,0.00032876,7]
[328251672,1717110647362,-501.47581884,0.00032876,7]
[328251673,1717110647372,-329.74934353,0.00032876,7]
[328251674,1717110647382,-511.81156889,0.00032876,7]
[328251675,1717110647392,-511.04058676,0.00032876,7]
[328251676,1717110647402,-446.8178927,0.00032876,7]
[328251677,1717110647412,-500.0,0.00032876,7]
[328251678,1717110647422,-506.36237778,0.00032876,7]
[328251679,1717110647431,-509.90315006,0.00032876,7]
[328251680,1717110647441,-591.86921661,0.00032876,7]
[328251681,1717110647450,-508.20459294,0.00032876,7]
[328251682,1717110647460,-504.36293846,0.00032876,7]
[328251683,1717110647470,-500.0,0.00032876,7]
[328251684,1717110647479,-516.6249726,0.00032876,7]
[328251685,1717110647488,-511.30757325,0.00032876,7]